bitfinex/quotes_BTCUSD_20230831
["timestamp","ask_amount","ask_price","bid_price","bid_amount"]
[1693467896998,4.97874461,27279.0,27278.0,0.116109]
[1693467897196,4.97742461,27279.0,27278.0,0.116109]
[1693467897424,4.97766461,27279.0,27278.0,0.116109]
[1693467897538,4.97910461,27279.0,27278.0,0.116109]
[1693467897738,4.97898461,27279.0,27278.0,0.116109]
[1693467898149,4.97892461,27279.0,27278.0,0.116109]
[1693467898358,4.97766461,27279.0,27278.0,0.116109]
[1693467898558,4.97874461,27279.0,27278.0,0.116109]
[1693467898959,4.97868461,27279.0,27278.0,0.116109]
[1693467899321,4.97748461,27279.0,27278.0,0.116109]
[1693467899528,4.97904461,27279.0,27278.0,0.116109]
[1693467899730,4.97910461,27279.0,27278.0,0.116109]
[1693467899882,4.97874461,27279.0,27278.0,0.116109]
[1693467900060,4.97868461,27279.0,27278.0,0.116109]
[1693467900259,5.35724372,27279.0,27278.0,0.116109]
[1693467900493,5.38120372,27279.0,27278.0,0.116109]
[1693467900690,5.37802372,27279.0,27278.0,0.116109]
[1693467900894,5.37838372,27279.0,27278.0,0.116109]
[1693467901137,5.37730372,27279.0,27278.0,0.116109]
[1693467901319,5.37844372,27279.0,27278.0,0.116109]
[1693467901514,5.01194461,27279.0,27278.0,0.116109]
[1693467901791,5.01176461,27279.0,27278.0,0.116109]
[1693467901997,5.01002461,27279.0,27278.0,0.116109]
[1693467902267,5.00708461,27279.0,27278.0,0.116109]
[1693467902507,5.00624461,27279.0,27278.0,0.116109]
[1693467902708,5.00576461,27279.0,27278.0,0.116109]
[1693467902911,5.00606461,27279.0,27278.0,0.116109]
[1693467903348,5.00540461,27279.0,27278.0,0.116109]
[1693467903522,5.00516461,27279.0,27278.0,0.116109]
[1693467903733,5.00522461,27279.0,27278.0,0.116109]
[1693467903886,5.00528461,27279.0,27278.0,0.116109]
[1693467904089,5.00564461,27279.0,27278.0,0.116109]
[1693467904292,5.00588461,27279.0,27278.0,0.116109]
[1693467904655,5.37142372,27279.0,27278.0,0.116109]
[1693467904859,5.40011468,27279.0,27278.0,0.116109]
[1693467905012,5.03271557,27279.0,27278.0,0.116109]
[1693467905196,5.03025557,27279.0,27278.0,0.116109]
[1693467905391,5.03013557,27279.0,27278.0,0.116109]
[1693467905604,5.03007557,27279.0,27278.0,0.116109]
[1693467905815,5.02947557,27279.0,27278.0,0.116109]
[1693467906004,5.02983557,27279.0,27278.0,0.116109]
[1693467906230,5.03115557,27279.0,27278.0,0.116109]
[1693467906435,5.03253557,27279.0,27278.0,0.116109]
[1693467906638,5.03247557,27279.0,27278.0,0.116109]
[1693467907236,5.03241557,27279.0,27278.0,0.116109]
[1693467907440,5.03145557,27279.0,27278.0,0.116109]
[1693467907645,5.03091557,27279.0,27278.0,0.116109]
[1693467907847,5.03103557,27279.0,27278.0,0.116109]
[1693467907990,5.03091557,27279.0,27278.0,0.116109]
[1693467908358,5.03049557,27279.0,27278.0,0.116109]
[1693467908501,5.03013557,27279.0,27278.0,0.116109]
[1693467908704,5.03037557,27279.0,27278.0,0.116109]
[1693467908925,5.02947557,27279.0,27278.0,0.116109]
[1693467909128,5.02515557,27279.0,27278.0,0.116109]
[1693467909303,5.02443557,27279.0,27278.0,0.116109]
[1693467909504,5.02389557,27279.0,27278.0,0.116109]
[1693467909746,5.02341557,27279.0,27278.0,0.116109]
[1693467910061,5.02491557,27279.0,27278.0,0.116109]
[1693467910262,5.02479557,27279.0,27278.0,0.116109]
[1693467910473,5.02455557,27279.0,27278.0,0.116109]
[1693467910608,5.02869557,27279.0,27278.0,0.116109]
[1693467910811,5.03175557,27279.0,27278.0,0.116109]
[1693467911065,5.03151557,27279.0,27278.0,0.116109]
[1693467911242,5.02599557,27279.0,27278.0,0.116109]
[1693467911454,5.39117468,27279.0,27278.0,0.116109]
[1693467911651,5.39039468,27279.0,27278.0,0.116109]
[1693467911858,5.39033468,27279.0,27278.0,0.116109]
[1693467912564,5.02545557,27279.0,27278.0,0.116109]
[1693467912761,5.02509557,27279.0,27278.0,0.116109]
[1693467912941,5.02299557,27279.0,27278.0,0.116109]
[1693467913341,5.02257557,27279.0,27278.0,0.116109]
[1693467913551,5.02263557,27279.0,27278.0,0.116109]
[1693467913781,5.02311557,27279.0,27278.0,0.116109]
[1693467913941,5.02269557,27279.0,27278.0,0.116109]
[1693467914301,5.02257557,27279.0,27278.0,0.116109]
[1693467914457,5.02269557,27279.0,27278.0,0.116109]
[1693467914859,5.02389557,27279.0,27278.0,0.116109]
[1693467915061,5.02305557,27279.0,27278.0,0.116109]
[1693467915267,5.02353557,27279.0,27278.0,0.116109]
[1693467915594,5.02401557,27279.0,27278.0,0.116109]
[1693467916149,5.02413557,27279.0,27278.0,0.116109]
[1693467916349,5.02419557,27279.0,27278.0,0.116109]
[1693467916550,5.02425557,27279.0,27278.0,0.116109]
[1693467916963,5.02473557,27279.0,27278.0,0.116109]
[1693467917413,5.02467557,27279.0,27278.0,0.116109]
[1693467917658,5.02497557,27279.0,27278.0,0.116109]
[1693467918162,5.01921557,27279.0,27278.0,0.116109]
[1693467918361,5.01849557,27279.0,27278.0,0.116109]
[1693467918713,5.01903557,27279.0,27278.0,0.116109]
[1693467918942,5.01813557,27279.0,27278.0,0.116109]
[1693467919145,5.01771557,27279.0,27278.0,0.116109]
[1693467919296,5.01777557,27279.0,27278.0,0.116109]
[1693467919698,5.01849557,27279.0,27278.0,0.116109]
[1693467919902,5.01999557,27279.0,27278.0,0.116109]
[1693467920240,5.02017557,27279.0,27278.0,0.116109]
[1693467920631,5.02335557,27279.0,27278.0,0.116109]
[1693467921233,5.02215557,27279.0,27278.0,0.116109]
[1693467921707,5.02125557,27279.0,27278.0,0.116109]
[1693467921893,5.02149557,27279.0,27278.0,0.116109]
[1693467922091,5.02137557,27279.0,27278.0,0.116109]
[1693467922338,5.02101557,27279.0,27278.0,0.116109]
[1693467922521,5.02077557,27279.0,27278.0,0.116109]
[1693467922721,5.02005557,27279.0,27278.0,0.116109]
[1693467922863,5.02047557,27279.0,27278.0,0.116109]
[1693467923274,5.01783557,27279.0,27278.0,0.116109]
[1693467923475,5.01741557,27279.0,27278.0,0.116109]
[1693467923679,5.2093735,27279.0,27278.0,0.116109]
[1693467924476,4.92529557,27279.0,27278.0,0.116109]
[1693467924858,5.17406023,27279.0,27278.0,0.116109]
[1693467925646,4.92529557,27279.0,27278.0,0.116109]
[1693467926268,5.22573015,27279.0,27278.0,0.116109]
[1693467926467,4.92529557,27279.0,27278.0,0.116109]
[1693467927725,5.19459751,27279.0,27278.0,0.116109]
[1693467933448,4.89779726,27279.0,27278.0,0.116109]
[1693467934527,4.62849532,27279.0,27278.0,0.116109]
[1693467935246,4.88019829,27279.0,27278.0,0.116109]
[1693467935919,4.62849532,27279.0,27278.0,0.116109]
[1693467936528,4.97681568,27279.0,27278.0,0.116109]
[1693467936729,4.69047532,27279.0,27278.0,0.116109]
[1693467936888,4.96009471,27279.0,27278.0,0.116109]
[1693467937350,4.96015471,27279.0,27278.0,0.116109]
[1693467937577,4.89799471,27279.0,27278.0,0.116109]
[1693467943915,4.69263532,27279.0,27278.0,0.116109]
[1693467944139,4.69275532,27279.0,27278.0,0.116109]
[1693467944334,4.69323532,27279.0,27278.0,0.116109]
[1693467944777,4.69437532,27279.0,27278.0,0.116109]
[1693467944978,4.69641532,27279.0,27278.0,0.116109]
[1693467945147,4.69671532,27279.0,27278.0,0.116109]
[1693467945344,4.69701532,27279.0,27278.0,0.116109]
[1693467945555,4.69983532,27279.0,27278.0,0.116109]
[1693467945773,4.69941532,27279.0,27278.0,0.116109]
[1693467945985,4.69899532,27279.0,27278.0,0.116109]
[1693467946559,4.69905532,27279.0,27278.0,0.116109]
[1693467946764,4.69911532,27279.0,27278.0,0.116109]
[1693467947139,4.69953532,27279.0,27278.0,0.116109]
[1693467948023,4.70001532,27279.0,27278.0,0.116109]
[1693467948678,4.70019532,27279.0,27278.0,0.116109]
[1693467948875,4.70079532,27279.0,27278.0,0.116109]
[1693467949101,4.70067532,27279.0,27278.0,0.116109]
[1693467949279,4.70061532,27279.0,27278.0,0.116109]
[1693467949485,4.70067532,27279.0,27278.0,0.116109]
[1693467949680,4.70061532,27279.0,27278.0,0.116109]
[1693467950515,4.70043532,27279.0,27278.0,0.116109]
[1693467950869,4.70205532,27279.0,27278.0,0.116109]
[1693467951077,4.70181532,27279.0,27278.0,0.116109]
[1693467951285,4.70199532,27279.0,27278.0,0.116109]
[1693467951660,4.70205532,27279.0,27278.0,0.116109]
[1693467951860,4.70175532,27279.0,27278.0,0.116109]
[1693467952206,4.70121532,27279.0,27278.0,0.116109]
[1693467952425,4.70025532,27279.0,27278.0,0.116109]
[1693467953441,4.70049532,27279.0,27278.0,0.116109]
[1693467953766,4.70103532,27279.0,27278.0,0.116109]
[1693467953966,4.70175532,27279.0,27278.0,0.116109]
[1693467954275,4.70277532,27279.0,27278.0,0.116109]
[1693467954475,4.69935532,27279.0,27278.0,0.116109]
[1693467954592,4.69929532,27279.0,27278.0,0.116109]
[1693467954802,4.70373532,27279.0,27278.0,0.116109]
[1693467955000,4.70397532,27279.0,27278.0,0.116109]
[1693467955210,4.70427532,27279.0,27278.0,0.116109]
[1693467955412,4.70421532,27279.0,27278.0,0.116109]
[1693467955828,4.70427532,27279.0,27278.0,0.116109]
[1693467956384,4.70271532,27279.0,27278.0,0.116109]
[1693467956591,4.70355532,27279.0,27278.0,0.116109]
[1693467956794,4.70199532,27279.0,27278.0,0.116109]
[1693467956971,4.70355532,27279.0,27278.0,0.116109]
[1693467957147,4.70331532,27279.0,27278.0,0.116109]
[1693467957351,4.70325532,27279.0,27278.0,0.116109]
[1693467957552,4.70331532,27279.0,27278.0,0.116109]
[1693467957752,4.70019532,27279.0,27278.0,0.116109]
[1693467957951,4.69983532,27279.0,27278.0,0.116109]
[1693467958127,4.69989532,27279.0,27278.0,0.116109]
[1693467958331,4.69977532,27279.0,27278.0,0.116109]
[1693467958745,4.69959532,27279.0,27278.0,0.116109]
[1693467958947,4.69965532,27279.0,27278.0,0.116109]
[1693467959597,4.70007532,27279.0,27278.0,0.116109]
[1693467959808,4.70145532,27279.0,27278.0,0.116109]
[1693467960005,4.70157532,27279.0,27278.0,0.116109]
[1693467960206,4.70169532,27279.0,27278.0,0.116109]
[1693467960405,4.70007532,27279.0,27278.0,0.116109]
[1693467960606,4.70055532,27279.0,27278.0,0.116109]
[1693467960824,4.70043532,27279.0,27278.0,0.116109]
[1693467961570,4.70049532,27279.0,27278.0,0.116109]
[1693467961773,4.69791532,27279.0,27278.0,0.116109]
[1693467962137,4.70073532,27279.0,27278.0,0.116109]
[1693467962351,4.70061532,27279.0,27278.0,0.116109]
[1693467962555,4.70175532,27279.0,27278.0,0.116109]
[1693467962760,4.70319532,27279.0,27278.0,0.116109]
[1693467962961,4.70181532,27279.0,27278.0,0.116109]
[1693467963162,4.69989532,27279.0,27278.0,0.116109]
[1693467963365,4.70007532,27279.0,27278.0,0.116109]
[1693467963560,4.70019532,27279.0,27278.0,0.116109]
[1693467963763,4.70007532,27279.0,27278.0,0.116109]
[1693467963973,4.70013532,27279.0,27278.0,0.116109]
[1693467964576,4.70019532,27279.0,27278.0,0.116109]
[1693467965202,4.70079532,27279.0,27278.0,0.116109]
[1693467965348,4.70067532,27279.0,27278.0,0.116109]
[1693467965558,4.70073532,27279.0,27278.0,0.116109]
[1693467965929,4.69791532,27279.0,27278.0,0.116109]
[1693467966253,4.69797532,27279.0,27278.0,0.116109]
[1693467966481,4.69815532,27279.0,27278.0,0.116109]
[1693467967078,4.69821532,27279.0,27278.0,0.116109]
[1693467967252,4.69863532,27279.0,27278.0,0.116109]
[1693467967586,4.69887532,27279.0,27278.0,0.116109]
[1693467967796,4.70055532,27279.0,27278.0,0.116109]
[1693467967968,4.71141532,27279.0,27278.0,0.116109]
[1693467968102,4.71039532,27279.0,27278.0,0.116109]
[1693467968306,4.71111532,27279.0,27278.0,0.116109]
[1693467968510,4.71519532,27279.0,27278.0,0.116109]
[1693467968749,5.08151443,27279.0,27278.0,0.116109]
[1693467968949,5.08001443,27279.0,27278.0,0.116109]
[1693467969155,5.07989443,27279.0,27278.0,0.116109]
[1693467969465,5.08031443,27279.0,27278.0,0.116109]
[1693467969692,5.08025443,27279.0,27278.0,0.116109]
[1693467969908,5.07869443,27279.0,27278.0,0.116109]
[1693467970111,5.07893443,27279.0,27278.0,0.116109]
[1693467970350,5.08151443,27279.0,27278.0,0.116109]
[1693467970559,4.69375443,27279.0,27278.0,0.116109]
[1693467970762,4.69249443,27279.0,27278.0,0.116109]
[1693467970940,4.69213443,27279.0,27278.0,0.116109]
[1693467971168,4.69195443,27279.0,27278.0,0.116109]
[1693467971300,4.69249443,27279.0,27278.0,0.116109]
[1693467971512,4.69243443,27279.0,27278.0,0.116109]
[1693467971713,4.69231443,27279.0,27278.0,0.116109]
[1693467972135,4.69195443,27279.0,27278.0,0.116109]
[1693467972338,4.69225443,27279.0,27278.0,0.116109]
[1693467972513,4.69141443,27279.0,27278.0,0.116109]
[1693467972715,4.69105443,27279.0,27278.0,0.116109]
[1693467972933,4.69099443,27279.0,27278.0,0.116109]
[1693467973135,4.31891532,27279.0,27278.0,0.116109]
[1693467973354,4.31699532,27279.0,27278.0,0.116109]
[1693467973561,4.31711532,27279.0,27278.0,0.116109]
[1693467973768,4.31579532,27279.0,27278.0,0.116109]
[1693467974291,4.31573532,27279.0,27278.0,0.116109]
[1693467974502,4.31519532,27279.0,27278.0,0.116109]
[1693467974804,4.31507532,27279.0,27278.0,0.116109]
[1693467975007,4.31501532,27279.0,27278.0,0.116109]
[1693467975211,4.5700164,27279.0,27278.0,0.116109]
[1693467975412,4.31345532,27279.0,27278.0,0.116109]
[1693467975638,4.31159532,27279.0,27278.0,0.116109]
[1693467975815,4.54832259,27279.0,27278.0,0.116109]
[1693467975994,4.30877532,27279.0,27278.0,0.116109]
[1693467976395,4.30871532,27279.0,27278.0,0.116109]
[1693467976595,4.30883532,27279.0,27278.0,0.116109]
[1693467976772,4.30853532,27279.0,27278.0,0.116109]
[1693467977115,4.67677443,27279.0,27278.0,0.116109]
[1693467977251,4.67743443,27279.0,27278.0,0.116109]
[1693467977469,4.67875443,27279.0,27278.0,0.116109]
[1693467977842,4.67785443,27279.0,27278.0,0.116109]
[1693467978078,4.67623443,27279.0,27278.0,0.116109]
[1693467978277,4.67683443,27279.0,27278.0,0.116109]
[1693467978480,4.67701443,27279.0,27278.0,0.116109]
[1693467978791,4.67695443,27279.0,27278.0,0.116109]
[1693467979021,4.67689443,27279.0,27278.0,0.116109]
[1693467979202,4.67695443,27279.0,27278.0,0.116109]
[1693467979341,4.67563443,27279.0,27278.0,0.116109]
[1693467979561,4.67569443,27279.0,27278.0,0.116109]
[1693467979764,4.67761443,27279.0,27278.0,0.116109]
[1693467979963,4.67767443,27279.0,27278.0,0.116109]
[1693467980166,4.92201392,27279.0,27278.0,0.116109]
[1693467980388,4.67785443,27279.0,27278.0,0.116109]
[1693467980586,4.48128893,27279.0,27278.0,0.116109]
[1693467980792,4.54386893,27279.0,27278.0,0.116109]
[1693467981010,4.48128893,27279.0,27278.0,0.116109]
[1693467982031,4.54302893,27279.0,27278.0,0.116109]
[1693467982181,4.54344893,27279.0,27278.0,0.116109]
[1693467982383,4.54476893,27279.0,27278.0,0.116109]
[1693467982627,4.54536893,27279.0,27278.0,0.116109]
[1693467982859,4.54440893,27279.0,27278.0,0.116109]
[1693467983048,4.54344893,27279.0,27278.0,0.116109]
[1693467983178,4.54308893,27279.0,27278.0,0.116109]
[1693467983392,4.46429244,27279.0,27278.0,0.116109]
[1693467983981,4.46429244,27279.0,27278.0,0.14904341]
[1693467985313,4.72000191,27279.0,27278.0,0.14904341]
[1693467985873,4.79560191,27279.0,27278.0,0.14904341]
[1693467995270,4.49860479,27279.0,27278.0,0.14904341]
[1693467996254,4.79560191,27279.0,27278.0,0.14904341]
[1693467996586,4.49860479,27279.0,27278.0,0.14904341]
[1693467997854,4.53989244,27279.0,27278.0,0.14904341]
[1693467998010,4.77362308,27279.0,27278.0,0.14904341]
[1693468000098,4.53989244,27279.0,27278.0,0.14904341]
[1693468000719,4.82970376,27279.0,27278.0,0.14904341]
[1693468000927,4.53989244,27279.0,27278.0,0.14904341]
[1693468001222,4.62179244,27279.0,27278.0,0.14904341]
[1693468001430,4.62269244,27279.0,27278.0,0.14904341]
[1693468001632,4.62119244,27279.0,27278.0,0.14904341]
[1693468001959,4.61873244,27279.0,27278.0,0.116109]
[1693468002126,4.61861244,27279.0,27278.0,0.116109]
[1693468002331,4.61921244,27279.0,27278.0,0.116109]
[1693468002533,4.61855244,27279.0,27278.0,0.116109]
[1693468002870,4.61717244,27279.0,27278.0,0.116109]
[1693468003197,4.61747244,27279.0,27278.0,0.116109]
[1693468003315,4.61759244,27279.0,27278.0,0.116109]
[1693468003518,4.61795244,27279.0,27278.0,0.116109]
[1693468003739,4.31909532,27279.0,27278.0,0.116109]
[1693468003956,4.31879532,27279.0,27278.0,0.116109]
[1693468004177,4.31855532,27279.0,27278.0,0.116109]
[1693468004377,4.31837532,27279.0,27278.0,0.116109]
[1693468004574,4.31585532,27279.0,27278.0,0.116109]
[1693468004774,4.31555532,27279.0,27278.0,0.116109]
[1693468004979,4.31549532,27279.0,27278.0,0.116109]
[1693468005222,4.31537532,27279.0,27278.0,0.116109]
[1693468005514,4.31513532,27279.0,27278.0,0.116109]
[1693468005719,4.31627532,27279.0,27278.0,0.116109]
[1693468005874,4.32485532,27279.0,27278.0,0.116109]
[1693468006082,4.32503532,27279.0,27278.0,0.116109]
[1693468006283,4.32539532,27279.0,27278.0,0.116109]
[1693468006507,4.32341532,27279.0,27278.0,0.116109]
[1693468006710,4.32659532,27279.0,27278.0,0.116109]
[1693468006984,4.32503532,27279.0,27278.0,0.116109]
[1693468007211,4.32683532,27279.0,27278.0,0.116109]
[1693468007408,4.32353532,27279.0,27278.0,0.116109]
[1693468007644,4.32311532,27279.0,27278.0,0.116109]
[1693468007849,4.31843532,27279.0,27278.0,0.116109]
[1693468008093,4.31885532,27279.0,27278.0,0.116109]
[1693468008279,4.32203532,27279.0,27278.0,0.116109]
[1693468008488,4.31969532,27279.0,27278.0,0.116109]
[1693468008662,4.32149532,27279.0,27278.0,0.116109]
[1693468008871,4.31783532,27279.0,27278.0,0.116109]
[1693468009064,4.31825532,27279.0,27278.0,0.116109]
[1693468009285,4.31777532,27279.0,27278.0,0.116109]
[1693468009625,4.31819532,27279.0,27278.0,0.116109]
[1693468009798,4.31807532,27279.0,27278.0,0.116109]
[1693468010005,4.31753532,27279.0,27278.0,0.116109]
[1693468010214,4.31747532,27279.0,27278.0,0.116109]
[1693468010637,4.31669532,27279.0,27278.0,0.116109]
[1693468010837,4.31555532,27279.0,27278.0,0.116109]
[1693468011057,4.24289532,27279.0,27278.0,0.116109]
[1693468011260,4.30613532,27279.0,27278.0,0.116109]
[1693468011398,4.31243532,27279.0,27278.0,0.116109]
[1693468011596,4.31591532,27279.0,27278.0,0.116109]
[1693468011815,4.31579532,27279.0,27278.0,0.116109]
[1693468012007,4.31573532,27279.0,27278.0,0.116109]
[1693468012213,4.31831532,27279.0,27278.0,0.116109]
[1693468012462,4.31813532,27279.0,27278.0,0.116109]
[1693468012655,4.31519532,27279.0,27278.0,0.116109]
[1693468012831,4.31507532,27279.0,27278.0,0.116109]
[1693468013034,4.31501532,27279.0,27278.0,0.116109]
[1693468013241,4.31693532,27279.0,27278.0,0.116109]
[1693468013442,4.31687532,27279.0,27278.0,0.116109]
[1693468013641,4.31597532,27279.0,27278.0,0.116109]
[1693468013871,4.31609532,27279.0,27278.0,0.116109]
[1693468014069,4.31603532,27279.0,27278.0,0.116109]
[1693468014471,4.31699532,27279.0,27278.0,0.116109]
[1693468014711,4.31729532,27279.0,27278.0,0.116109]
[1693468014889,4.31897532,27279.0,27278.0,0.116109]
[1693468015204,4.31561532,27279.0,27278.0,0.116109]
[1693468015407,4.31729532,27279.0,27278.0,0.116109]
[1693468015610,4.31765532,27279.0,27278.0,0.116109]
[1693468015784,4.31645532,27279.0,27278.0,0.116109]
[1693468015987,4.31873532,27279.0,27278.0,0.116109]
[1693468016147,4.31579532,27279.0,27278.0,0.116109]
[1693468016347,4.31561532,27279.0,27278.0,0.116109]
[1693468016764,4.31567532,27279.0,27278.0,0.116109]
[1693468016966,4.31549532,27279.0,27278.0,0.116109]
[1693468017153,4.31525532,27279.0,27278.0,0.116109]
[1693468017280,4.31681532,27279.0,27278.0,0.116109]
[1693468017491,4.31693532,27279.0,27278.0,0.116109]
[1693468017731,4.31669532,27279.0,27278.0,0.116109]
[1693468017949,4.31663532,27279.0,27278.0,0.116109]
[1693468018176,4.31447532,27279.0,27278.0,0.116109]
[1693468018452,4.31513532,27279.0,27278.0,0.116109]
[1693468018657,4.31459532,27279.0,27278.0,0.116109]
[1693468018859,4.31447532,27279.0,27278.0,0.116109]
[1693468019059,4.31453532,27279.0,27278.0,0.116109]
[1693468019355,4.31459532,27279.0,27278.0,0.116109]
[1693468019563,4.31435532,27279.0,27278.0,0.116109]
[1693468019764,4.31447532,27279.0,27278.0,0.116109]
[1693468020098,4.5766753,27279.0,27278.0,0.116109]
[1693468020296,4.5763153,27279.0,27278.0,0.116109]
[1693468020562,4.5749953,27279.0,27278.0,0.116109]
[1693468020739,4.31255532,27279.0,27278.0,0.116109]
[1693468021140,4.31273532,27279.0,27278.0,0.116109]
[1693468021361,4.31255532,27279.0,27278.0,0.116109]
[1693468021574,4.31249532,27279.0,27278.0,0.116109]
[1693468021780,4.60292266,27279.0,27278.0,0.116109]
[1693468022004,4.31039532,27279.0,27278.0,0.116109]
[1693468022175,4.31861532,27279.0,27278.0,0.116109]
[1693468022355,4.32251532,27279.0,27278.0,0.116109]
[1693468022533,4.31771532,27279.0,27278.0,0.116109]
[1693468022738,4.31801532,27279.0,27278.0,0.116109]
[1693468022996,4.31795532,27279.0,27278.0,0.116109]
[1693468023289,4.31783532,27279.0,27278.0,0.116109]
[1693468023485,4.31765532,27279.0,27278.0,0.116109]
[1693468023689,4.31759532,27279.0,27278.0,0.116109]
[1693468023891,4.31753532,27279.0,27278.0,0.116109]
[1693468024088,4.31615532,27279.0,27278.0,0.116109]
[1693468024466,4.31645532,27279.0,27278.0,0.116109]
[1693468024683,4.31639532,27279.0,27278.0,0.116109]
[1693468024918,4.31651532,27279.0,27278.0,0.116109]
[1693468025206,4.31645532,27279.0,27278.0,0.116109]
[1693468025515,4.31501532,27279.0,27278.0,0.116109]
[1693468025688,4.31495532,27279.0,27278.0,0.116109]
[1693468025884,4.31399532,27279.0,27278.0,0.116109]
[1693468026308,4.31393532,27279.0,27278.0,0.116109]
[1693468026546,4.31399532,27279.0,27278.0,0.116109]
[1693468026722,4.31345532,27279.0,27278.0,0.116109]
[1693468026867,4.31393532,27279.0,27278.0,0.116109]
[1693468027272,4.31381532,27279.0,27278.0,0.116109]
[1693468027573,4.31393532,27279.0,27278.0,0.116109]
[1693468027793,4.31387532,27279.0,27278.0,0.116109]
[1693468028432,4.31381532,27279.0,27278.0,0.116109]
[1693468028588,4.31417532,27279.0,27278.0,0.116109]
[1693468028788,4.31405532,27279.0,27278.0,0.116109]
[1693468028987,4.60541162,27279.0,27278.0,0.116109]
[1693468029426,4.60511162,27279.0,27278.0,0.116109]
[1693468029630,4.60457162,27279.0,27278.0,0.116109]
[1693468029967,4.60511162,27279.0,27278.0,0.116109]
[1693468030125,4.60487162,27279.0,27278.0,0.116109]
[1693468030537,4.60439162,27279.0,27278.0,0.116109]
[1693468030749,4.60433162,27279.0,27278.0,0.116109]
[1693468030948,4.60493162,27279.0,27278.0,0.116109]
[1693468031148,4.60187162,27279.0,27278.0,0.116109]
[1693468031375,4.53707162,27279.0,27278.0,0.116109]
[1693468033783,4.60037162,27279.0,27278.0,0.116109]
[1693468033960,4.60049162,27279.0,27278.0,0.116109]
[1693468034346,4.60007162,27279.0,27278.0,0.116109]
[1693468034544,4.59953162,27279.0,27278.0,0.116109]
[1693468034680,4.59935162,27279.0,27278.0,0.116109]
[1693468035635,4.59947162,27279.0,27278.0,0.116109]
[1693468035829,4.59953162,27279.0,27278.0,0.116109]
[1693468036035,4.59947162,27279.0,27278.0,0.116109]
[1693468036328,4.59959162,27279.0,27278.0,0.116109]
[1693468036512,4.60211162,27279.0,27278.0,0.116109]
[1693468036716,4.60283162,27279.0,27278.0,0.116109]
[1693468036915,4.60289162,27279.0,27278.0,0.116109]
[1693468037113,4.60223162,27279.0,27278.0,0.116109]
[1693468037367,4.53707162,27279.0,27278.0,0.116109]
[1693468037960,4.53707162,27279.0,27278.0,0.14886038]
[1693468039389,4.53707162,27279.0,27278.0,0.116109]
[1693468040164,4.62849532,27279.0,27278.0,0.116109]
[1693468040421,4.81745532,27279.0,27278.0,0.14886038]
[1693468040628,4.83695532,27279.0,27278.0,0.14886038]
[1693468040831,4.83689532,27279.0,27278.0,0.116109]
[1693468041033,4.83041532,27279.0,27278.0,0.116109]
[1693468041234,4.83023532,27279.0,27278.0,0.116109]
[1693468041436,4.75943532,27279.0,27278.0,0.116109]
[1693468041663,4.85373532,27279.0,27278.0,0.116109]
[1693468041868,4.85343532,27279.0,27278.0,0.116109]
[1693468042067,4.85475532,27279.0,27278.0,0.116109]
[1693468042301,4.89195532,27279.0,27278.0,0.116109]
[1693468042507,4.85571532,27279.0,27278.0,0.116109]
[1693468042699,4.89147532,27279.0,27278.0,0.116109]
[1693468042900,4.89039532,27279.0,27278.0,0.116109]
[1693468043081,4.89345532,27279.0,27278.0,0.116109]
[1693468043292,4.85673532,27279.0,27278.0,0.116109]
[1693468043496,4.89075532,27279.0,27278.0,0.116109]
[1693468043720,4.92645532,27279.0,27278.0,0.116109]
[1693468043937,4.92573532,27279.0,27278.0,0.116109]
[1693468044168,4.88907532,27279.0,27278.0,0.116109]
[1693468044347,4.92471532,27279.0,27278.0,0.116109]
[1693468044555,4.92459532,27279.0,27278.0,0.116109]
[1693468044757,4.92501532,27279.0,27278.0,0.116109]
[1693468044965,1.99289932,27279.0,27278.0,0.116109]
[1693468045171,4.92579532,27279.0,27278.0,0.116109]
[1693468045378,4.92495532,27279.0,27278.0,0.116109]
[1693468045582,4.92537532,27279.0,27278.0,0.116109]
[1693468045786,4.92453532,27279.0,27278.0,0.116109]
[1693468046020,4.92399532,27279.0,27278.0,0.116109]
[1693468046228,4.92417532,27279.0,27278.0,0.116109]
[1693468046428,4.92393532,27279.0,27278.0,0.116109]
[1693468046633,4.92405532,27279.0,27278.0,0.116109]
[1693468046835,4.92345532,27279.0,27278.0,0.116109]
[1693468047038,4.92339532,27279.0,27278.0,0.116109]
[1693468047242,4.92261532,27279.0,27278.0,0.116109]
[1693468047440,4.92255532,27279.0,27278.0,0.116109]
[1693468047642,4.92189532,27279.0,27278.0,0.116109]
[1693468047847,4.92171532,27279.0,27278.0,0.116109]
[1693468048048,4.92123532,27279.0,27278.0,0.116109]
[1693468048287,4.92153532,27279.0,27278.0,0.116109]
[1693468048497,4.92159532,27279.0,27278.0,0.116109]
[1693468048703,4.92165532,27279.0,27278.0,0.116109]
[1693468048901,4.92105532,27279.0,27278.0,0.116109]
[1693468049109,4.92075532,27279.0,27278.0,0.116109]
[1693468049318,4.92117532,27279.0,27278.0,0.116109]
[1693468049519,4.92027532,27279.0,27278.0,0.116109]
[1693468049741,1.98803932,27279.0,27278.0,0.116109]
[1693468050173,3.44668732,27279.0,27278.0,0.116109]
[1693468050587,3.44746732,27279.0,27278.0,0.116109]
[1693468050797,3.44734732,27279.0,27278.0,0.116109]
[1693468051003,1.98095932,27279.0,27278.0,0.116109]
[1693468051212,4.91205532,27279.0,27278.0,0.116109]
[1693468051418,4.91349532,27279.0,27278.0,0.116109]
[1693468051616,4.91679532,27279.0,27278.0,0.116109]
[1693468051790,4.91145532,27279.0,27278.0,0.116109]
[1693468051928,4.91127532,27279.0,27278.0,0.116109]
[1693468052126,4.91133532,27279.0,27278.0,0.116109]
[1693468052331,4.91277532,27279.0,27278.0,0.116109]
[1693468052673,4.91241532,27279.0,27278.0,0.116109]
[1693468052879,4.91265532,27279.0,27278.0,0.116109]
[1693468053098,4.91229532,27279.0,27278.0,0.116109]
[1693468053315,4.91241532,27279.0,27278.0,0.116109]
[1693468053471,1.97993932,27279.0,27278.0,0.116109]
[1693468053681,4.17913132,27279.0,27278.0,0.116109]
[1693468053883,4.17925132,27279.0,27278.0,0.116109]
[1693468054230,4.91235532,27279.0,27278.0,0.116109]
[1693468054395,4.91229532,27279.0,27278.0,0.116109]
[1693468054749,4.91211532,27279.0,27278.0,0.116109]
[1693468054895,4.91205532,27279.0,27278.0,0.116109]
[1693468055095,4.91235532,27279.0,27278.0,0.116109]
[1693468055289,4.91199532,27279.0,27278.0,0.116109]